fUSD/lending_fUSD_20241207
["ID","MTS","AMOUNT","RATE_DAILY","PERIOD"]
[344561585,1733549478468,-641.74,0.0001261,2]
[344561586,1733549478477,-500.0,0.0001261,2]
[344561587,1733549478487,-564.55,0.0001261,2]
[344561588,1733549478497,-500.0,0.0001261,2]
[344561589,1733549478506,-500.0,0.0001261,2]
[344561590,1733549478516,-546.46,0.0001261,2]
[344561591,1733549478525,-500.0,0.0001261,2]
[344561592,1733549478536,-500.0,0.0001261,2]
[344561593,1733549478548,-500.0,0.0001261,2]
[344561594,1733549478558,-500.0,0.0001261,2]
[344561595,1733549478568,-500.0,0.0001261,2]
[344561596,1733549478578,-500.0,0.0001261,2]
[344561597,1733549478588,-500.0,0.0001261,2]
[344561598,1733549478598,-837.24,0.0001261,2]
[344561599,1733549478608,-500.0,0.0001261,2]
[344561600,1733549478617,-236.1,0.0001261,2]
[344561601,1733549478627,-500.0,0.0001261,2]
[344561602,1733549478637,-500.0,0.0001261,2]
[344561603,1733549478647,-500.0,0.0001261,2]
[344561604,1733549478805,-596.47,0.0001261,2]
[344561605,1733549478816,-500.0,0.0001261,2]
[344561606,1733549478826,-500.0,0.0001261,2]
[344561607,1733549478836,-500.0,0.0001261,2]
[344561608,1733549478845,-687.18,0.0001261,2]
[344561609,1733549478855,-555.71,0.0001261,2]
[344561610,1733549478864,-512.46,0.0001261,2]
[344561611,1733549478873,-500.0,0.0001261,2]
[344561612,1733549478883,-500.0,0.0001261,2]
[344561613,1733549478893,-500.0,0.0001261,2]
[344561614,1733549478903,-500.0,0.0001261,2]
[344561615,1733549478914,-500.0,0.0001261,2]
[344561616,1733549478924,-500.0,0.0001261,2]
[344561617,1733549478934,-500.0,0.0001261,2]
[344561618,1733549478944,-500.0,0.00012611,2]
[344561619,1733549478954,-500.0,0.00012611,2]
[344561620,1733549478964,-500.0,0.00012611,2]
[344561621,1733549478975,-500.0,0.00012611,2]
[344561622,1733549478985,-500.0,0.00012611,2]
[344561623,1733549478995,-500.0,0.00012611,2]
[344561624,1733549479005,-500.0,0.00012611,2]
[344561625,1733549479016,-500.0,0.00012611,2]
[344561626,1733549479025,-500.0,0.00012611,2]
[344561627,1733549479035,-500.0,0.00012611,2]
[344561628,1733549479046,-500.0,0.00012611,2]
[344561629,1733549479055,-500.0,0.00012611,2]
[344561630,1733549479065,-500.0,0.00012611,2]
[344561631,1733549479074,-500.0,0.00012611,2]
[344561632,1733549479084,-500.0,0.00012611,2]
[344561633,1733549479094,-587.0,0.00012629,2]
[344561634,1733549479104,-1874.76188076,0.00012645,2]
[344561635,1733549479113,-150.0,0.00012698,2]
[344561636,1733549479123,-150.0,0.00012698,3]
[344561637,1733549479133,-3400.0,0.000127,4]
[344561638,1733549479142,-2918.60948477,0.00012734,2]
[344561639,1733549479152,-500.0,0.00012746,2]
[344561640,1733549479161,-600.0,0.000128,4]
[344561641,1733549479170,-1003.0,0.000128,2]
[344561642,1733549479179,-2255.1826764,0.00012866,2]
[344561643,1733549479189,-589.01,0.00012875,2]
[344561644,1733549479198,-500.0,0.00012875,2]
[344561645,1733549479208,-1582.27,0.00012875,2]
[344561646,1733549479219,-632.65,0.00012875,2]
[344561647,1733549479229,-500.0,0.00012875,2]
[344561648,1733549479239,-2020.28,0.00012875,2]
[344561649,1733549479249,-513.63,0.00012875,2]
[344561650,1733549479258,-1046.26,0.00012875,2]
[344561651,1733549479268,-500.0,0.00012875,2]
[344561652,1733549479280,-651.7,0.00012875,2]
[344561653,1733549479292,-1141.16,0.00012875,2]
[344561654,1733549479302,-542.21,0.00012875,2]
[344561655,1733549479312,-500.0,0.00012875,2]
[344561656,1733549479323,-519.81,0.00012875,2]
[344561657,1733549479332,-500.0,0.00012875,2]
[344561658,1733549479342,-3914.05,0.00012875,2]
[344561659,1733549479351,-666.86,0.00012875,2]
[344561660,1733549479363,-500.0,0.00012875,2]
[344561661,1733549479372,-1173.93,0.00012875,2]
[344561662,1733549479381,-3608.55,0.00012875,2]
[344561663,1733549479390,-500.0,0.00012875,2]
[344561664,1733549479399,-575.27,0.00012875,2]
[344561665,1733549479409,-500.0,0.00012875,2]
[344561666,1733549479420,-500.0,0.00012875,2]
[344561667,1733549479430,-500.0,0.00012875,2]
[344561668,1733549479440,-500.0,0.00012875,2]
[344561669,1733549479450,-500.0,0.00012875,2]
[344561670,1733549479460,-2759.46,0.00012875,2]
[344561671,1733549479470,-500.0,0.00012875,2]
[344561672,1733549479480,-1012.98,0.00012875,2]
[344561673,1733549479490,-556.62,0.00012875,2]
[344561674,1733549479500,-3673.37,0.00012875,2]
[344561675,1733549479509,-500.0,0.00012875,2]
[344561676,1733549479519,-1093.24,0.00012875,2]
[344561677,1733549479532,-500.0,0.00012875,2]
[344561678,1733549479544,-1638.3,0.00012875,2]
[344561679,1733549479557,-500.0,0.00012875,2]
[344561680,1733549479567,-1124.94,0.00012875,2]
[344561681,1733549479577,-500.0,0.00012875,2]
[344561682,1733549479586,-2182.22,0.00012875,2]
[344561683,1733549479596,-1468.75,0.00012875,2]
[344561684,1733549479605,-643.44,0.00012875,2]
[344561685,1733549479615,-500.0,0.00012875,2]
[344561686,1733549479625,-1445.63,0.00012875,2]
[344561687,1733549479634,-500.0,0.00012875,2]
[344561688,1733549479643,-500.0,0.00012875,2]
[344561689,1733549479653,-500.0,0.00012876,2]
[344561690,1733549479663,-500.0,0.00012876,2]
[344561691,1733549479673,-550.84,0.00012876,2]
[344561692,1733549479683,-322.64,0.00012876,2]
[344561693,1733549479694,-500.0,0.00012876,2]
[344561694,1733549479703,-500.0,0.00012876,2]
[344561695,1733549479714,-500.0,0.00012876,2]
[344561696,1733549479723,-500.0,0.00012876,2]
[344561697,1733549479733,-500.0,0.00012876,2]
[344561698,1733549479742,-500.0,0.00012876,2]
[344561699,1733549479751,-500.0,0.00012876,2]
[344561700,1733549479760,-500.0,0.00012876,2]
[344561701,1733549479770,-500.0,0.00012876,2]
[344561702,1733549479779,-500.0,0.00012876,2]
[344561703,1733549479788,-500.0,0.00012876,2]
[344561704,1733549479799,-500.0,0.00012876,2]
[344561705,1733549479808,-500.0,0.00012876,2]
[344561706,1733549479818,-500.0,0.00012876,2]
[344561707,1733549479828,-500.0,0.00012876,2]
[344561708,1733549479838,-1200.0,0.00012876,2]
[344561709,1733549479847,-500.0,0.00012876,2]
[344561710,1733549479857,-500.0,0.00012876,2]
[344561711,1733549479866,-500.0,0.00012876,2]
[344561712,1733549479876,-500.0,0.00012876,2]
[344561713,1733549479885,-500.0,0.00012876,2]
[344561714,1733549479895,-500.0,0.00012876,2]
[344561715,1733549479904,-611.25,0.00012876,2]
[344561716,1733549479913,-500.0,0.00012876,2]
[344561717,1733549479922,-584.81,0.00012876,2]
[344561718,1733549479932,-500.0,0.00012876,2]
[344561719,1733549479942,-500.0,0.00012876,2]
[344561720,1733549479951,-500.0,0.00012876,2]
[344561721,1733549479961,-500.0,0.00012876,2]
[344561722,1733549479970,-500.0,0.00012876,2]
[344561723,1733549479979,-674.5,0.00012876,2]
[344561724,1733549479990,-546.48,0.00012876,2]
[344561725,1733549479999,-500.0,0.00012876,2]
[344561726,1733549480009,-500.0,0.00012876,2]
[344561727,1733549480018,-500.0,0.00012876,2]
[344561728,1733549480028,-500.0,0.00012876,2]
[344561729,1733549480038,-500.0,0.00012876,2]
[344561730,1733549480049,-542.46577596,0.00012876,2]
[344561731,1733549480058,-500.0,0.00012876,2]
[344561732,1733549480068,-554.34,0.00012876,2]
[344561733,1733549480077,-500.0,0.00012876,2]
[344561734,1733549480087,-500.0,0.00012876,2]
[344561735,1733549480097,-500.0,0.00012876,2]
[344561736,1733549480106,-500.0,0.00012876,2]
[344561737,1733549480115,-500.0,0.00012876,2]
[344561738,1733549480125,-500.0,0.00012876,2]
[344561739,1733549480134,-500.0,0.00012876,2]
[344561740,1733549480143,-500.0,0.00012876,2]
[344561741,1733549480153,-500.0,0.00012876,2]
[344561742,1733549480162,-500.0,0.00012876,2]
[344561743,1733549480171,-500.0,0.00012876,2]
[344561744,1733549480181,-500.0,0.00012876,2]
[344561745,1733549480190,-653.9,0.00012876,2]
[344561746,1733549480199,-573.1,0.00012876,2]
[344561747,1733549480208,-500.0,0.00012876,2]
[344561748,1733549480217,-500.0,0.00012876,2]
[344561749,1733549480227,-500.0,0.00012876,2]
[344561750,1733549480236,-376.47,0.00012876,2]
[344561751,1733549480246,-500.0,0.00012876,2]
[344561752,1733549480255,-549.98,0.00012876,2]
[344561753,1733549480264,-500.0,0.00012876,2]
[344561754,1733549480274,-500.0,0.00012876,2]
[344561755,1733549480287,-500.0,0.00012876,2]
[344561756,1733549480297,-500.0,0.00012876,2]
[344561757,1733549480306,-500.0,0.00012876,2]
[344561758,1733549480316,-500.0,0.00012876,2]
[344561759,1733549480326,-500.0,0.00012876,2]
[344561760,1733549480336,-500.0,0.00012876,2]
[344561761,1733549480346,-500.0,0.00012876,2]
[344561762,1733549480360,-500.0,0.00012876,2]
[344561763,1733549480369,-500.0,0.00012876,2]
[344561764,1733549480379,-500.0,0.00012876,2]
[344561765,1733549480388,-500.0,0.00012876,2]
[344561766,1733549480398,-500.0,0.00012876,2]
[344561767,1733549480407,-500.0,0.00012876,2]
[344561768,1733549480417,-500.0,0.00012876,2]
[344561769,1733549480427,-500.0,0.00012876,2]
[344561770,1733549480436,-500.0,0.00012876,2]
[344561771,1733549480446,-553.75,0.00012876,2]
[344561772,1733549480455,-706.71,0.00012876,2]
[344561773,1733549480465,-500.0,0.00012876,2]
[344561774,1733549480475,-500.0,0.00012876,2]
[344561775,1733549480484,-500.0,0.00012876,2]
[344561776,1733549480493,-500.0,0.00012876,2]
[344561777,1733549480502,-500.0,0.00012876,2]
[344561778,1733549480512,-500.0,0.00012876,2]
[344561779,1733549480521,-903.49,0.00012876,2]
[344561780,1733549480531,-500.0,0.00012876,2]
[344561781,1733549480541,-500.0,0.00012876,2]
[344561782,1733549480551,-500.0,0.00012876,2]
[344561783,1733549480560,-667.25,0.00012876,2]
[344561784,1733549480570,-500.0,0.00012876,2]
[344561785,1733549480579,-500.0,0.00012876,2]
[344561786,1733549480589,-534.82,0.00012876,2]
[344561787,1733549480598,-500.0,0.00012876,2]
[344561788,1733549480607,-761.25,0.00012876,2]
[344561789,1733549480616,-2234.74,0.00012876,2]
[344561790,1733549480626,-500.0,0.00012876,2]
[344561791,1733549480636,-1186.86,0.00012876,2]
[344561792,1733549480645,-500.0,0.00012876,2]
[344561793,1733549480655,-1083.49,0.00012876,2]
[344561794,1733549480665,-500.0,0.00012876,2]
[344561795,1733549480674,-500.0,0.00012876,2]
[344561796,1733549480684,-500.0,0.00012876,2]
[344561797,1733549480694,-566.02,0.00012876,2]
[344561798,1733549480704,-500.0,0.00012876,2]
[344561799,1733549480714,-500.0,0.00012876,2]
[344561800,1733549480724,-855.15,0.00012876,2]
[344561801,1733549480734,-500.0,0.00012876,2]
[344561802,1733549480744,-500.0,0.00012876,2]
[344561803,1733549480754,-322.06,0.00012876,2]
[344561804,1733549480763,-500.0,0.00012876,2]
[344561805,1733549480773,-500.0,0.00012876,2]
[344561806,1733549480783,-1079.81,0.00012876,2]
[344561807,1733549480793,-564.24,0.00012876,2]
[344561808,1733549480803,-500.0,0.00012876,2]
[344561809,1733549480813,-500.0,0.00012876,2]
[344561810,1733549480823,-500.0,0.00012876,2]
[344561811,1733549480833,-500.0,0.00012876,2]
[344561812,1733549480843,-500.0,0.00012876,2]
[344561813,1733549480853,-500.0,0.00012876,2]
[344561814,1733549480862,-515.46,0.00012876,2]
[344561815,1733549480871,-373.58,0.00012876,2]
[344561816,1733549480881,-500.0,0.00012876,2]
[344561817,1733549480891,-664.72,0.00012876,2]
[344561818,1733549480900,-500.0,0.00012876,2]
[344561819,1733549480910,-500.0,0.00012876,2]
[344561820,1733549480920,-545.56,0.00012876,2]
[344561821,1733549480930,-646.87,0.00012876,2]
[344561822,1733549480942,-500.0,0.00012876,2]
[344561823,1733549480951,-500.0,0.00012876,2]
[344561824,1733549480960,-2725.2,0.00012876,2]
[344561825,1733549480970,-500.0,0.00012876,2]
[344561826,1733549480980,-500.0,0.00012876,2]
[344561827,1733549480989,-690.49,0.00012876,2]
[344561828,1733549480999,-574.11,0.00012876,2]
[344561829,1733549481009,-806.55,0.00012876,2]
[344561830,1733549481018,-500.0,0.00012876,2]
[344561831,1733549481028,-500.0,0.00012876,2]
[344561832,1733549481038,-664.19,0.00012876,2]
[344561833,1733549481049,-500.0,0.00012876,2]
[344561834,1733549481059,-500.0,0.00012876,2]
[344561835,1733549481070,-874.49,0.00012876,2]
[344561836,1733549481081,-500.0,0.00012876,2]
[344561837,1733549481090,-500.0,0.00012876,2]
[344561838,1733549481099,-500.0,0.00012876,2]
[344561839,1733549481109,-3079.62,0.00012876,2]
[344561840,1733549481119,-556.08,0.00012876,2]
[344561841,1733549481128,-500.0,0.00012876,2]
[344561842,1733549481138,-1578.67,0.00012876,2]
[344561843,1733549481147,-500.0,0.00012876,2]
[344561844,1733549481304,-500.0,0.00012876,2]
[344561845,1733549481314,-500.0,0.00012876,2]
[344561846,1733549481324,-500.0,0.00012876,2]
[344561847,1733549481334,-500.0,0.00012876,2]
[344561848,1733549481344,-500.0,0.00012883,2]
[344561849,1733549481356,-529.18,0.00012884,2]
[344561850,1733549481366,-500.0,0.00012884,2]
[344561851,1733549481376,-500.0,0.00012884,2]
[344561852,1733549481390,-500.0,0.00012884,2]
[344561853,1733549481400,-500.0,0.00012884,2]
[344561854,1733549481410,-500.0,0.00012884,2]
[344561855,1733549481420,-500.0,0.00012884,2]
[344561856,1733549481430,-530.18,0.00012884,2]
[344561857,1733549481440,-500.0,0.00012884,2]
[344561858,1733549481450,-500.0,0.00012884,2]
[344561859,1733549481459,-500.0,0.00012884,2]
[344561860,1733549481468,-500.0,0.00012884,2]
[344561861,1733549481478,-500.0,0.00012884,2]
[344561862,1733549481488,-500.0,0.00012884,2]
[344561863,1733549481497,-500.0,0.00012884,2]
[344561864,1733549481507,-500.0,0.00012884,2]
[344561865,1733549481516,-541.02,0.00012884,2]
[344561866,1733549481526,-500.0,0.00012884,2]
[344561867,1733549481535,-500.0,0.00012884,2]
[344561868,1733549481546,-500.0,0.00012884,2]
[344561869,1733549481556,-500.0,0.00012884,2]
[344561870,1733549481566,-641.74,0.00012884,2]
[344561871,1733549481575,-500.0,0.00012884,2]
[344561872,1733549481585,-564.55,0.00012884,2]
[344561873,1733549481595,-500.0,0.00012884,2]
[344561874,1733549481604,-500.0,0.00012884,2]
[344561875,1733549481614,-546.46,0.00012884,2]
[344561876,1733549481623,-500.0,0.00012884,2]
[344561877,1733549481633,-500.0,0.00012884,2]
[344561878,1733549481642,-500.0,0.00012884,2]
[344561879,1733549481652,-500.0,0.00012884,2]
[344561880,1733549481662,-517.0,0.00012884,2]
[344561881,1733549481671,-500.0,0.00012884,2]
[344561882,1733549481680,-500.0,0.00012884,2]
[344561883,1733549481691,-500.0,0.00012884,2]
[344561884,1733549481701,-837.24,0.00012884,2]
[344561885,1733549481710,-500.0,0.00012884,2]
[344561886,1733549481720,-500.0,0.00012884,2]
[344561887,1733549481729,-500.0,0.00012884,2]
[344561888,1733549481739,-500.0,0.00012884,2]
[344561889,1733549481749,-596.47,0.00012884,2]
[344561890,1733549481759,-500.0,0.00012884,2]
[344561891,1733549481769,-500.0,0.00012884,2]
[344561892,1733549481779,-500.0,0.00012884,2]
[344561893,1733549481788,-687.18,0.00012884,2]
[344561894,1733549481799,-555.71,0.00012884,2]
[344561895,1733549481809,-512.46,0.00012884,2]
[344561896,1733549481819,-500.0,0.00012884,2]
[344561897,1733549481829,-500.0,0.00012884,2]
[344561898,1733549481840,-500.0,0.00012884,2]
[344561899,1733549481849,-500.0,0.00012884,2]
[344561900,1733549481859,-500.0,0.00012884,2]
[344561901,1733549481869,-500.0,0.00012884,2]
[344561902,1733549481878,-500.0,0.00012884,2]
[344561903,1733549481887,-500.0,0.00012885,2]
[344561904,1733549481897,-500.0,0.00012885,2]
[344561905,1733549481906,-500.0,0.00012885,2]
[344561906,1733549481916,-500.0,0.00012885,2]
[344561907,1733549481925,-179.04577543,0.00012885,2]
[344561908,1733549481936,-500.0,0.00012885,2]
[344561909,1733549481945,-500.0,0.00012885,2]
[344561910,1733549481954,-500.0,0.00012885,2]
[344561911,1733549481964,-500.0,0.00012885,2]
[344561912,1733549481973,-500.0,0.00012885,2]
[344561913,1733549481983,-500.0,0.00012885,2]
[344561914,1733549481992,-500.0,0.00012885,2]
[344561915,1733549482001,-500.0,0.00012885,2]
[344561916,1733549482011,-500.0,0.00012885,2]
[344561917,1733549482020,-500.0,0.00012885,2]
[344561918,1733549482030,-200.0,0.00012898,2]
[344561919,1733549482039,-200.0,0.00012898,2]
[344561920,1733549482054,-200.0,0.00012898,3]
[344561921,1733549482063,-200.0,0.00012898,3]
[344561922,1733549482072,-192.14137521,0.000129,2]
[344561923,1733549482082,-600.0,0.000129,4]
[344561924,1733549482092,-3925.86627846,0.000129,2]
[344561925,1733549482101,-2918.60948477,0.000129,2]
[344561926,1733549482111,-193.29240512,0.000129,2]
[344561927,1733549482120,-12856.79445618,0.00012902,2]
[344561928,1733549482129,-2201.3883877,0.00012986,2]
[344561929,1733549482139,-2934.53432601,0.0001299,2]
[344561930,1733549482148,-1861.1522965,0.00012991,2]
[344561931,1733549482158,-1520.9162052,0.00012991,2]
[344561932,1733549482167,-1180.6801139,0.00012991,2]
[344561933,1733549482177,-1906.6323964,0.00012991,2]
[344561934,1733549482186,-1558.0821164,0.00012991,2]
[344561935,1733549482196,-1209.5318364,0.00012991,2]
[344561936,1733549482206,-84285.25077444,0.00012995,2]
[344561937,1733549482215,-529.18,0.00012999,2]
[344561938,1733549482225,-529.18,0.00012999,2]
[344561939,1733549482234,-529.18,0.00012999,2]
[344561940,1733549482244,-529.18,0.00012999,2]
[344561941,1733549482254,-529.18,0.00012999,2]
[344561942,1733549482263,-529.18,0.00012999,2]
[344561943,1733549482274,-529.18,0.00012999,2]
[344561944,1733549482292,-529.18,0.00012999,2]
[344561945,1733549482312,-529.18,0.00012999,2]
[344561946,1733549482323,-529.18,0.00012999,2]
[344561947,1733549482332,-529.18,0.00012999,2]
[344561948,1733549482342,-529.39511731,0.00012999,2]
[344561949,1733549482351,-517.0,0.00012999,2]
[344561950,1733549482360,-517.0,0.00012999,2]
[344561951,1733549482370,-517.0,0.00012999,2]
[344561952,1733549482380,-517.0,0.00012999,2]
[344561953,1733549482390,-517.0,0.00012999,2]
[344561954,1733549482399,-517.0,0.00012999,2]
[344561955,1733549482409,-517.0,0.00012999,2]
[344561956,1733549482419,-517.0,0.00012999,2]
[344561957,1733549482428,-517.0,0.00012999,2]
[344561958,1733549482437,-517.0,0.00012999,2]
[344561959,1733549482447,-517.0,0.00012999,2]
[344561960,1733549482456,-517.12796155,0.00012999,2]
[344561961,1733549482466,-1901916.1119079,0.00013,2]
[344561962,1733549482906,-676.03,0.00011505,2]
[344561963,1733549482916,-500.0,0.00011514,2]
[344561964,1733549482925,-748.3,0.00011779,2]
[344561965,1733549482934,-4305.03169738,0.00013,2]
[344561966,1733549482946,-5503.45172745,0.00013,2]
[344561967,1733549482957,-800.02,0.00013,2]
[344561968,1733549482968,-62181.12191268,0.00013,2]
[344561969,1733549482979,-8695.45,0.00013,2]
[344561970,1733549483032,-500.0,0.00011788,2]
[344561971,1733549483041,-748.3,0.00012053,2]
[344561972,1733549483052,-720.35488134,0.00013,2]
[344561973,1733549483063,-7038.80700636,0.00013,2]
[344561974,1733549483575,-2500.0,0.00011406,2]
[344561975,1733549483586,-676.03,0.00011779,2]
[344561976,1733549483596,-676.03,0.00012053,2]
[344561977,1733549483607,-500.0,0.00012062,2]
[344561978,1733549483616,-632.89,0.00012327,2]
[344561979,1733549483629,-115.41,0.00012327,2]
[344561980,1733549483638,-406.60898272,0.00012327,2]
[344561981,1733549483649,-269.42101728,0.00012327,2]
[344561982,1733549483659,-500.0,0.00012336,2]
[344561983,1733549483668,-570.86987433,0.00012601,2]
[344561984,1733549483680,-177.43012567,0.00012601,2]
[344561985,1733549483689,-676.03,0.00012601,2]
[344561986,1733549483698,-500.0,0.0001261,2]
[344561987,1733549483707,-748.3,0.00012875,2]
[344561988,1733549483716,-676.03,0.00012875,2]
[344561989,1733549483726,-410.09720375,0.00012884,2]
[344561990,1733549483741,-89.90279625,0.00012884,2]
[344561991,1733549483750,-12023.17724529,0.00013,2]
[344561992,1733549483771,-5762.5380509,0.00013,2]
[344561993,1733549483783,-968.17170794,0.00013,2]
[344561994,1733549483805,-2421.15410784,0.00013,2]
[344561995,1733549483816,-5578.286526,0.00013,2]
[344561996,1733549483827,-100033.04525947,0.00013,2]
[344561997,1733549483839,-128610.951,0.00013,2]
[344562012,1733550631840,-964.380752,9.076e-05,2]
[344562021,1733550631919,-328.749248,9.076e-05,2]
[344562023,1733550631930,-60.010752,0.00010579,2]
[344562038,1733550635052,-385.14781,0.00010579,2]
[344562039,1733550635062,-250.0,0.00010633,2]
[344562040,1733550635071,-250.0,0.00010662,2]
[344562041,1733550635082,-221.18,0.000107,2]
[344562042,1733550635091,-102.77642545,0.00010704,2]
[344562043,1733550635103,-897.22357455,0.00010704,2]
[344562044,1733550635112,-150.0,0.00010959,2]
[344562045,1733550635122,-150.0,0.00010965,2]
[344562046,1733550635131,-300.0,0.0001098,2]
[344562047,1733550635141,-6199.91762032,0.00010981,2]
[344562048,1733550635152,-1822.30928363,0.00010981,2]
[344562049,1733550635167,-2201.14024772,0.00010981,2]
[344562050,1733550635179,-1597.738107,0.00010981,2]
[344562051,1733550635191,-11079.34474133,0.00010981,2]
[344562052,1733550635200,-675.79,0.00010997,2]
[344562053,1733550635210,-150.0,0.00011041,2]
[344562054,1733550635220,-292.76,0.0001105,2]
[344562055,1733550635230,-500.0,0.00011241,2]
[344562056,1733550635239,-500.0,0.00011241,2]
[344562057,1733550635249,-500.0,0.00011241,2]
[344562058,1733550635258,-500.0,0.00011241,2]
[344562059,1733550635269,-500.0,0.00011241,2]
[344562060,1733550635279,-500.0,0.00011241,2]
[344562061,1733550635288,-500.0,0.00011241,2]
[344562062,1733550635297,-500.0,0.00011241,2]
[344562063,1733550635307,-500.0,0.00011241,2]
[344562064,1733550635316,-500.0,0.00011241,2]
[344562065,1733550635325,-500.0,0.00011241,2]
[344562066,1733550635334,-500.0,0.00011241,2]
[344562067,1733550635343,-500.0,0.00011241,2]
[344562068,1733550635352,-1212.80788844,0.00011339,2]
[344562097,1733550635721,-2.15931271,0.00011339,2]
[344562099,1733550635732,-78.16279885,0.00011339,2]
[344562101,1733550635741,-714.10388339,0.00011405,2]
[344562304,1733550637763,-2633.71500411,0.00011405,2]
[344562306,1733550637773,-150.0,0.00011414,2]
[344562308,1733550637784,-500.0,0.00011505,2]
[344562310,1733550637794,-500.0,0.00011505,2]
[344562312,1733550637803,-161.68,0.00011505,2]
[344562314,1733550637812,-500.0,0.00011505,2]
[344562316,1733550637823,-500.0,0.00011505,2]
[344562318,1733550637834,-500.0,0.00011505,2]
[344562320,1733550637843,-500.0,0.00011505,2]
[344562322,1733550637852,-500.0,0.00011505,2]
[344562324,1733550637862,-500.0,0.00011505,2]
[344562326,1733550637871,-500.0,0.00011505,2]
[344562328,1733550637880,-500.0,0.00011505,2]
[344562330,1733550637889,-500.0,0.00011505,2]
[344562332,1733550637898,-500.0,0.00011505,2]
[344562334,1733550637907,-403.06,0.00011505,2]
[344562336,1733550637916,-412.25869999,0.00011505,2]
[344562338,1733550637926,-500.0,0.00011505,2]
[344562340,1733550637935,-500.0,0.00011505,2]
[344562342,1733550637944,-632.49,0.00011505,2]
[344562344,1733550637953,-500.0,0.00011505,2]
[344562346,1733550637962,-500.0,0.00011505,2]
[344562348,1733550637971,-500.0,0.00011505,2]
[344562350,1733550637980,-566.38,0.00011505,2]
[344562352,1733550637990,-500.0,0.00011505,2]
[344562354,1733550637999,-500.0,0.00011505,2]
[344562356,1733550638008,-500.0,0.00011505,2]
[344562358,1733550638019,-500.0,0.00011505,2]
[344562360,1733550638028,-500.0,0.00011505,2]
[344562362,1733550638037,-500.0,0.00011505,2]
[344562364,1733550638047,-500.0,0.00011505,2]
[344562366,1733550638056,-500.0,0.00011505,2]
[344562368,1733550638065,-500.0,0.00011505,2]
[344562370,1733550638075,-500.0,0.00011505,2]
[344562372,1733550638084,-500.0,0.00011505,2]
[344562374,1733550638093,-500.0,0.00011505,2]
[344562376,1733550638102,-500.0,0.00011505,2]
[344562378,1733550638111,-500.0,0.00011505,2]
[344562380,1733550638121,-500.0,0.00011505,2]
[344562382,1733550638130,-500.0,0.00011505,2]
[344562384,1733550638139,-500.0,0.00011505,2]
[344562386,1733550638148,-500.0,0.00011505,2]
[344562388,1733550638158,-500.0,0.00011505,2]
[344562390,1733550638167,-500.0,0.00011505,2]
[344562392,1733550638177,-327.88942149,0.00011505,2]
[344562394,1733550638187,-500.0,0.00011505,2]
[344562396,1733550638196,-500.0,0.00011505,2]
[344562398,1733550638206,-500.0,0.00011505,2]
[344562400,1733550638215,-500.0,0.00011505,2]
[344562402,1733550638225,-500.0,0.00011505,2]